bitfinex-derivatives/quotes_BTCF0:USTF0_20250620
["timestamp","ask_amount","ask_price","bid_price","bid_amount"]
[1750434406271,2.18276158,104540.0,104530.0,0.07804638]
[1750434406775,2.12548324,104540.0,104530.0,0.07804638]
[1750434408373,2.18276158,104540.0,104530.0,0.0686]
[1750434408572,1.4626202,104540.0,104530.0,0.003]
[1750434408769,2.1076602,104540.0,104530.0,0.003]
[1750434408967,2.05038186,104540.0,104530.0,0.003]
[1750434409571,0.14079907,104530.0,104510.0,0.0645568]
[1750434409871,2.36338932,104520.0,104510.0,0.0009568]
[1750434410077,2.45157734,104520.0,104510.0,0.00057931]
[1750434411574,2.39427846,104520.0,104510.0,0.00057931]
[1750434411882,2.40627846,104520.0,104510.0,0.00157931]
[1750434412276,2.40727846,104520.0,104510.0,0.00157931]
[1750434412477,2.40727846,104520.0,104510.0,0.03277931]
[1750434414476,2.40727846,104520.0,104510.0,0.00157931]
[1750434414683,2.48404964,104520.0,104510.0,0.00157931]
[1750434415479,0.1913515,104510.0,104500.0,0.033]
[1750434415679,1.52351814,104510.0,104500.0,0.033]
[1750434415979,1.52351814,104510.0,104500.0,0.2243698]
[1750434416187,1.49351814,104510.0,104500.0,0.2559698]
[1750434416579,2.10539814,104510.0,104500.0,0.2569698]
[1750434416986,2.07419814,104510.0,104500.0,0.26655035]
[1750434417181,2.07419814,104510.0,104500.0,0.04358055]
[1750434417486,2.14749814,104510.0,104500.0,0.035]
[1750434418379,2.14749814,104510.0,104500.0,0.002]
[1750434418982,1.65149814,104510.0,104500.0,0.002]
[1750434419679,1.65149814,104510.0,104500.0,0.07527608]
[1750434419879,1.65149814,104510.0,104500.0,0.0656]
[1750434420193,1.65149814,104510.0,104500.0,0.2569698]
[1750434420194,0.97631814,104510.0,104500.0,0.2569698]
[1750434420387,1.58731814,104510.0,104500.0,0.0656]
[1750434421883,1.58731814,104510.0,104500.0,0.033]
[1750434422088,1.65331814,104510.0,104500.0,0.033]
[1750434422284,1.26313952,104510.0,104500.0,0.033]
[1750434422485,1.65331814,104510.0,104500.0,0.033]
[1750434423690,1.65331814,104510.0,104500.0,0.002]
[1750434424690,2.10079564,104510.0,104500.0,1e-07]
[1750434424895,2.30079564,104510.0,104500.0,1e-07]
[1750434425202,2.64846571,104510.0,104500.0,1e-07]
[1750434425408,1.30379109,104510.0,104500.0,1e-07]
[1750434425701,1.84987109,104510.0,104500.0,1e-07]
[1750434425900,1.84987109,104510.0,104500.0,0.0645001]
[1750434426201,1.84769702,104510.0,104500.0,0.0645001]
[1750434426589,0.81751814,104510.0,104500.0,0.0645]
[1750434426808,1.18031814,104510.0,104500.0,0.0645]
[1750434427294,1.17531814,104510.0,104500.0,0.0645]
[1750434427902,1.17331814,104510.0,104500.0,0.0645]
[1750434428103,1.20351814,104510.0,104500.0,0.0645]
[1750434428308,1.23451814,104510.0,104500.0,0.0645]
[1750434429310,1.20869221,104510.0,104500.0,0.0645]
[1750434429908,0.1913881,104490.0,104480.0,0.35326499]
[1750434430211,1.15635474,104490.0,104480.0,0.41736499]
[1750434430413,0.79555474,104490.0,104480.0,0.41736499]
[1750434430612,1.15635474,104490.0,104480.0,0.26604499]
[1750434431108,0.79555474,104490.0,104480.0,0.26604499]
[1750434431413,1.16235474,104490.0,104480.0,0.06505708]
[1750434431716,0.77217612,104490.0,104480.0,0.06705708]
[1750434431914,1.16235474,104490.0,104480.0,0.06705708]
[1750434432212,1.55253336,104490.0,104480.0,0.06705708]
[1750434432614,1.16235474,104490.0,104480.0,0.06605708]
[1750434433304,1.16235474,104490.0,104480.0,0.07566146]
[1750434433504,1.16235474,104490.0,104480.0,0.06605708]
[1750434434015,1.16235474,104490.0,104480.0,0.25746348]
[1750434434419,1.15635474,104490.0,104480.0,0.06605708]
[1750434434615,1.55353336,104490.0,104480.0,0.06605708]
[1750434434913,0.77317612,104490.0,104480.0,0.06605708]
[1750434435121,1.55353336,104490.0,104480.0,0.06605708]
[1750434437419,1.58483336,104490.0,104480.0,0.06605708]
[1750434438018,1.80581474,104490.0,104480.0,0.25746348]
[1750434438214,1.77451474,104490.0,104480.0,0.06605708]
[1750434438624,1.83181362,104490.0,104480.0,0.06605708]
[1750434438825,2.22199224,104490.0,104480.0,0.06605708]
[1750434439626,1.83181362,104490.0,104480.0,0.06605708]
[1750434439921,1.83181362,104490.0,104480.0,0.25746348]
[1750434440117,1.441635,104490.0,104480.0,0.25746348]
[1750434440317,1.83598769,104490.0,104480.0,0.25746348]
[1750434440723,1.22482769,104490.0,104480.0,0.25746348]
[1750434441321,1.16752881,104490.0,104480.0,0.25746348]
[1750434441514,0.77735019,104490.0,104480.0,0.25746348]
[1750434441719,0.41655019,104490.0,104480.0,0.25746348]
[1750434444113,0.80672881,104490.0,104480.0,0.25746348]
[1750434446825,0.80672881,104490.0,104480.0,2.0598181]
[1750434446826,0.22655019,104490.0,104480.0,2.0598181]
[1750434447216,0.03516209,104490.0,104480.0,2.0598181]
[1750434448226,0.22655019,104490.0,104480.0,2.0598181]
[1750434449034,0.03516209,104490.0,104480.0,2.0598181]
[1750434449826,0.22655009,104490.0,104480.0,2.0598181]
[1750434450133,0.22655009,104490.0,104480.0,1.8098181]
[1750434450631,0.03516209,104490.0,104480.0,1.8098181]
[1750434452828,0.03516209,104490.0,104480.0,2.1798181]
[1750434453031,0.03516209,104490.0,104480.0,2.0598181]
[1750434453233,0.03516209,104490.0,104480.0,2.3998181]
[1750434453638,0.01117407,104490.0,104480.0,2.3998181]
[1750434454634,0.01117407,104490.0,104480.0,2.0598181]
[1750434454830,0.01117407,104490.0,104480.0,2.3998181]
[1750434456442,0.20256217,104490.0,104480.0,0.80967948]
[1750434456631,0.20256217,104490.0,104480.0,1.9578581]
[1750434457233,0.01117407,104490.0,104480.0,1.9578581]
[1750434457432,0.20256217,104490.0,104480.0,1.1998581]
[1750434457634,0.01117407,104490.0,104480.0,1.9574581]
[1750434458432,0.20256217,104490.0,104480.0,1.9574581]
[1750434458636,0.01117407,104490.0,104480.0,1.9574581]
[1750434459238,0.03507003,104490.0,104480.0,1.9574581]
[1750434459629,0.03507003,104490.0,104480.0,1.56727948]
[1750434459838,0.03507003,104490.0,104480.0,1.9574581]
[1750434460032,0.03507003,104490.0,104480.0,1.7660421]
[1750434460939,0.22645813,104490.0,104480.0,1.7660421]
[1750434461139,0.22645813,104490.0,104480.0,1.0084421]
[1750434461326,0.22645813,104490.0,104480.0,1.7650821]
[1750434461737,0.22645813,104490.0,104480.0,1.0084421]
[1750434462039,0.22645813,104490.0,104480.0,1.7649621]
[1750434464242,0.03507003,104490.0,104480.0,1.7649621]
[1750434464541,0.22645813,104490.0,104480.0,1.0084421]
[1750434464836,0.22645813,104490.0,104480.0,1.7649621]
[1750434465037,0.03507003,104490.0,104480.0,1.7649621]
[1750434465442,0.22645803,104490.0,104480.0,1.7649621]
[1750434465841,0.03507003,104490.0,104480.0,1.7649621]
[1750434466044,0.22645813,104490.0,104480.0,1.7649621]
[1750434467434,0.03507003,104490.0,104480.0,1.7649621]
[1750434467933,0.22645813,104490.0,104480.0,1.7649621]
[1750434470743,0.03507003,104490.0,104480.0,1.0084421]
[1750434471040,0.03507003,104490.0,104480.0,1.7624421]
[1750434471438,0.03507003,104490.0,104480.0,2.1324421]
[1750434471942,0.03507003,104490.0,104480.0,1.7624421]
[1750434472344,0.03061054,104490.0,104480.0,2.68403672]
[1750434472542,0.03061054,104490.0,104480.0,2.2938581]
[1750434472739,0.00254051,104490.0,104480.0,2.2938581]
[1750434473639,0.00671458,104490.0,104480.0,2.2938581]
[1750434473834,0.2532376,104520.0,104490.0,0.5263055]
[1750434474039,0.44309859,104520.0,104510.0,0.94233002]
[1750434474236,0.3948873,104520.0,104510.0,0.94233002]
[1750434474441,0.3948873,104520.0,104510.0,0.6164514]
[1750434474946,0.3958873,104520.0,104510.0,0.6164514]
[1750434475248,0.4078873,104520.0,104510.0,0.6174514]
[1750434477033,0.4108873,104520.0,104510.0,0.6174514]
[1750434477345,0.4058873,104520.0,104510.0,0.6174514]
[1750434478045,0.4028873,104520.0,104510.0,0.6174514]
[1750434480651,0.79306592,104520.0,104510.0,0.5531514]
[1750434480839,0.85876592,104520.0,104510.0,1.3069914]
[1750434481045,1.21956592,104520.0,104510.0,0.1923514]
[1750434481246,1.60974454,104520.0,104510.0,0.001]
[1750434481458,0.1913698,104500.0,104490.0,1.3060281]
[1750434481751,0.79547561,104500.0,104490.0,0.69933061]
[1750434481949,0.86117561,104500.0,104490.0,0.55181061]
[1750434482144,0.86117561,104500.0,104490.0,0.69933061]
[1750434482652,0.86117561,104500.0,104490.0,0.70133061]
[1750434482950,1.22197561,104500.0,104490.0,0.3409081]
[1750434483945,0.47399699,104500.0,104490.0,0.7027081]
[1750434484348,0.47399699,104500.0,104490.0,0.7648081]
[1750434484751,0.47817106,104500.0,104490.0,1.15498672]
[1750434484955,0.47817106,104500.0,104490.0,0.7648081]
[1750434485152,0.44497106,104500.0,104490.0,0.7648081]
[1750434485352,0.41247106,104500.0,104490.0,0.7648081]
[1750434486053,0.80264968,104500.0,104490.0,0.7648081]
[1750434486253,0.86584968,104500.0,104490.0,0.7648081]
[1750434486455,0.86584968,104500.0,104490.0,0.2254881]
[1750434486658,0.86584968,104500.0,104490.0,0.9482281]
[1750434486861,0.47567106,104500.0,104490.0,0.9482281]
[1750434487063,0.86584968,104500.0,104490.0,0.9482281]
[1750434488059,0.47567106,104500.0,104490.0,1.3090281]
[1750434488260,0.47567106,104500.0,104490.0,0.9793281]
[1750434488454,0.47567106,104500.0,104490.0,1.3401281]
[1750434489762,0.47567106,104500.0,104490.0,0.9793281]
[1750434490063,0.86584968,104500.0,104490.0,0.9793281]
[1750434490758,0.86584968,104500.0,104490.0,0.1943881]
[1750434492154,1.22664968,104500.0,104490.0,0.1943881]
[1750434493758,0.86584968,104500.0,104490.0,0.1943881]
[1750434495762,1.22664968,104500.0,104490.0,0.003]
[1750434496374,0.47567106,104500.0,104490.0,0.003]
[1750434496668,0.86584968,104500.0,104490.0,0.003]
[1750434496967,1.22664968,104500.0,104490.0,0.003]
[1750434498069,0.86584968,104500.0,104490.0,0.003]
[1750434498269,1.22664968,104500.0,104490.0,0.003]
[1750434499064,1.22664968,104500.0,104490.0,0.1943881]
[1750434499766,1.22664968,104500.0,104490.0,0.003]
[1750434500262,1.83276968,104500.0,104490.0,0.003]
[1750434500656,1.89006856,104500.0,104490.0,0.003]
[1750434501962,1.89006856,104500.0,104490.0,0.001]
[1750434502163,0.1913881,104490.0,104480.0,0.00095708]
[1750434502365,1.57737253,104490.0,104480.0,0.00095708]
[1750434502568,1.60767253,104490.0,104480.0,0.00095708]
[1750434502868,1.60767253,104490.0,104460.0,0.3717991]
[1750434502869,2.19132621,104490.0,104460.0,0.3717991]
[1750434503071,2.19132621,104490.0,104460.0,0.18036]
[1750434503072,0.94240332,104470.0,104460.0,0.18036]
[1750434503367,1.15633051,104470.0,104460.0,0.17998251]
[1750434503564,1.21753051,104470.0,104460.0,0.17998251]
[1750434504264,1.21753051,104470.0,104460.0,0.4593366]
[1750434504453,1.21753051,104470.0,104460.0,0.4603366]
[1750434504454,1.21953051,104470.0,104460.0,0.4603366]
[1750434504658,1.21953051,104470.0,104460.0,0.2688936]
[1750434505270,1.21953051,104470.0,104460.0,0.2698936]
[1750434507770,1.21953051,104470.0,104460.0,0.4613366]
[1750434508177,0.76815189,104470.0,104460.0,0.4941366]
[1750434508368,0.40735189,104470.0,104460.0,0.4941366]
[1750434509078,0.79753051,104470.0,104460.0,0.4941366]
[1750434515879,0.79753051,104470.0,104460.0,0.3026936]
[1750434515880,1.15833051,104470.0,104460.0,0.3026936]
[1750434516076,1.19340458,104470.0,104460.0,0.3026936]
[1750434516377,1.19340458,104470.0,104460.0,0.4941365]
[1750434517081,0.83260458,104470.0,104460.0,0.4941365]
[1750434517274,0.80170458,104470.0,104460.0,0.4941365]
[1750434517779,0.97107988,104470.0,104460.0,0.4941365]
[1750434517976,0.41152596,104470.0,104460.0,0.4941365]
[1750434518181,0.80170458,104470.0,104460.0,0.4941365]
[1750434519086,0.79753051,104470.0,104460.0,0.4941365]
[1750434520186,0.80170458,104470.0,104460.0,0.4941365]
[1750434520686,1.16250458,104470.0,104460.0,0.3467765]
[1750434521696,1.83074458,104470.0,104460.0,0.1553336]
[1750434521883,2.2209232,104470.0,104460.0,0.04428552]
[1750434522084,0.191443,104460.0,104450.0,0.00095735]
[1750434522293,0.191443,104460.0,104430.0,0.2533947]
[1750434522294,0.1914797,104440.0,104430.0,0.2533947]
[1750434522485,1.15638551,104440.0,104430.0,0.2533947]
[1750434522689,1.15638551,104440.0,104430.0,0.0619]
[1750434522885,1.15638551,104440.0,104430.0,0.253398]
[1750434523902,1.15838551,104440.0,104430.0,0.26375098]
[1750434524091,1.15838551,104440.0,104430.0,0.26575098]
[1750434525302,1.15838551,104440.0,104430.0,0.07425298]
[1750434525596,1.76410551,104440.0,104430.0,0.07425298]
[1750434526897,1.76410551,104440.0,104430.0,0.26575098]
[1750434527598,1.76410551,104440.0,104430.0,0.04245298]
[1750434527804,1.82780551,104440.0,104430.0,0.04245298]
[1750434527990,1.82780551,104440.0,104430.0,0.0331]
[1750434528694,1.82580551,104440.0,104430.0,0.0321]
[1750434528901,1.82980551,104440.0,104430.0,0.0321]
[1750434529196,1.82980551,104440.0,104430.0,0.23306378]
[1750434529400,1.76610551,104440.0,104430.0,0.23106378]
[1750434529599,1.76610551,104440.0,104430.0,0.26346378]
[1750434529798,0.02792719,104440.0,104430.0,1.7675224]
[1750434530794,0.02760302,104440.0,104430.0,1.9590264]
[1750434530996,1.17335872,104460.0,104450.0,0.1914613]
[1750434531196,1.35335872,104460.0,104450.0,0.1914613]
[1750434531395,1.35335872,104460.0,104450.0,0.3708613]
[1750434531596,0.9153161,104460.0,104450.0,0.3708613]
[1750434531802,0.9153161,104460.0,104450.0,0.76103992]
[1750434532091,0.6874544,104460.0,104450.0,1.36663992]
[1750434532301,0.6904544,104460.0,104450.0,1.3372613]
[1750434532497,0.6974544,104460.0,104450.0,1.3372613]
[1750434532893,0.8974544,104460.0,104450.0,1.3372613]
[1750434533200,0.8944544,104460.0,104450.0,1.3372613]
[1750434533395,0.8954544,104460.0,104450.0,1.3372613]
[1750434533804,0.6954544,104460.0,104450.0,1.3372613]
[1750434534101,0.8614544,104460.0,104450.0,1.3382613]
[1750434534303,0.8614544,104460.0,104450.0,1.3690613]
[1750434535198,0.6914544,104460.0,104450.0,1.3690613]
[1750434535605,0.9014544,104460.0,104450.0,1.3690613]
[1750434535797,0.6914544,104460.0,104450.0,1.3690613]
[1750434535995,0.1954544,104460.0,104450.0,1.3690613]
[1750434536499,0.1954544,104460.0,104450.0,1.75923992]
[1750434536500,0.4054544,104460.0,104450.0,1.75923992]
[1750434536803,0.1954544,104460.0,104450.0,1.3690613]
[1750434537796,0.3954544,104460.0,104450.0,1.3690613]
[1750434538197,0.1954544,104460.0,104450.0,1.3690613]
[1750434538397,0.3754544,104460.0,104450.0,1.3690613]
[1750434538599,0.1954544,104460.0,104450.0,1.3690613]
[1750434538802,0.3754544,104460.0,104450.0,1.3690613]
[1750434539002,0.76563302,104460.0,104450.0,1.3688213]
[1750434539703,1.15581164,104460.0,104450.0,1.17732]
[1750434539897,1.21981164,104460.0,104450.0,0.7326613]
[1750434540094,1.21981164,104460.0,104450.0,1.3379813]
[1750434540306,0.82963302,104460.0,104450.0,1.3379813]
[1750434540707,0.79673302,104460.0,104450.0,1.3379813]
[1750434540908,0.79673302,104460.0,104450.0,0.6177613]
[1750434541106,0.79673302,104460.0,104450.0,1.3700413]
[1750434541407,0.76563302,104460.0,104450.0,1.3700413]
[1750434541906,0.3754544,104460.0,104450.0,1.3700413]
[1750434542216,0.004,104460.0,104450.0,1.76021992]
[1750434542706,0.287126,104480.0,104450.0,2.35023062]
[1750434542899,0.49029071,104480.0,104470.0,0.1914247]
[1750434543099,0.49029071,104480.0,104470.0,0.9436247]
[1750434543100,0.48991322,104480.0,104470.0,0.9436247]
[1750434543300,0.48991322,104480.0,104470.0,0.9743247]
[1750434544107,0.45005972,104480.0,104470.0,1.3361247]
[1750434544909,0.45105972,104480.0,104470.0,1.3361247]
[1750434545308,0.44305972,104480.0,104470.0,1.3351247]
[1750434545503,0.44905972,104480.0,104470.0,1.3361247]
[1750434545698,0.27005972,104480.0,104470.0,1.3361247]
[1750434545908,0.27005972,104480.0,104470.0,1.3669247]
[1750434546304,0.46005972,104480.0,104470.0,1.3669247]
[1750434546505,0.45005972,104480.0,104470.0,1.3669247]
[1750434546806,0.2215422,104480.0,104470.0,1.3669247]
[1750434547118,0.4129552,104480.0,104470.0,1.3669247]
[1750434547411,0.2229552,104480.0,104470.0,1.3669247]
[1750434548413,0.0315422,104480.0,104470.0,1.85525684]
[1750434548714,0.008,104480.0,104470.0,1.85525684]
[1750434552919,0.1994064,104480.0,104470.0,0.6147247]
[1750434553312,0.87773854,104480.0,104470.0,1.3664047]
[1750434553519,0.71126611,104480.0,104470.0,1.3664047]
[1750434554018,0.22293397,104480.0,104470.0,1.3664047]
[1750434556614,0.03152757,104480.0,104470.0,1.3664047]
[1750434556823,0.008,104480.0,104470.0,1.85473684]
[1750434559421,0.008,104480.0,104470.0,1.3664047]
[1750434559622,0.03162402,104480.0,104470.0,1.85473684]
[1750434559823,0.03162402,104480.0,104470.0,1.3664047]
[1750434561218,0.03162402,104480.0,104470.0,2.04616884]
[1750434561421,0.008,104480.0,104470.0,2.04616884]
[1750434561923,0.00208557,104480.0,104470.0,2.39616884]
[1750434562512,0.00625964,104480.0,104470.0,2.39616884]
[1750434562921,0.00625964,104480.0,104470.0,2.29834117]
[1750434564325,0.0009347,104480.0,104470.0,2.29834117]
[1750434565724,0.496,104500.0,104490.0,0.58189247]
[1750434565928,0.7281913,104510.0,104500.0,0.1913697]
[1750434565929,0.2238671,104510.0,104500.0,0.1913697]
[1750434566127,0.24751016,104510.0,104500.0,0.5839697]
[1750434566425,0.21601016,104510.0,104500.0,0.6139697]
[1750434566821,0.41601016,104510.0,104500.0,0.6139697]
[1750434567021,0.23601016,104510.0,104500.0,0.6149697]
[1750434567228,0.41601016,104510.0,104500.0,0.6149697]
[1750434567529,0.24001016,104510.0,104500.0,0.6159697]
[1750434567919,0.24001016,104510.0,104500.0,1.00647417]
[1750434567920,0.22864306,104510.0,104500.0,1.00647417]
[1750434568120,0.04864306,104510.0,104500.0,1.00647417]
[1750434569222,0.23999446,104510.0,104500.0,1.00647417]
[1750434569527,0.23999446,104510.0,104500.0,0.002]
[1750434569528,1.17129893,104510.0,104500.0,0.002]
[1750434569731,1.23379893,104510.0,104500.0,0.1933697]
[1750434569918,1.23379893,104510.0,104500.0,0.7974097]
[1750434570630,1.23379893,104510.0,104500.0,0.60604]
[1750434570828,1.23379893,104510.0,104500.0,0.002]
[1750434571134,0.191388,104490.0,104480.0,0.6478887]
[1750434571325,0.191388,104490.0,104480.0,0.1914063]
[1750434571326,1.14633553,104490.0,104480.0,0.1914063]
[1750434571527,0.1914063,104480.0,104470.0,1.4461307]
[1750434571830,0.6722279,104480.0,104470.0,1.44571321]
[1750434572626,0.28172343,104480.0,104470.0,1.52234892]
[1750434572830,0.27754936,104480.0,104470.0,1.58264892]
[1750434573630,0.24644936,104480.0,104470.0,1.58264892]
[1750434573820,0.25362343,104480.0,104470.0,1.58364892]
[1750434575329,0.25362343,104480.0,104470.0,0.97968892]
[1750434575532,0.25362343,104480.0,104470.0,1.58360892]
[1750434575732,0.25362343,104480.0,104470.0,1.58356892]
[1750434576132,0.45362343,104480.0,104470.0,1.58356892]
[1750434576329,0.28602343,104480.0,104470.0,1.58356892]
[1750434578827,0.25362343,104480.0,104470.0,1.58356892]
[1750434579027,0.06221713,104480.0,104470.0,1.58356892]
[1750434579229,0.03081713,104480.0,104470.0,2.07187471]
[1750434579829,0.02664306,104480.0,104470.0,2.07187471]
[1750434581234,0.02664306,104480.0,104470.0,2.40187471]
[1750434581738,0.003,104480.0,104470.0,2.07187471]
[1750434583036,0.00717407,104480.0,104470.0,2.07187471]
[1750434583738,7e-08,104480.0,104470.0,2.07187471]
[1750434583938,7e-08,104480.0,104470.0,2.40187471]
[1750434587341,7e-08,104480.0,104470.0,2.40687471]
[1750434588042,0.00100007,104480.0,104470.0,2.41487471]
[1750434589039,0.00100007,104480.0,104470.0,2.47184038]
[1750434591240,0.00100007,104480.0,104470.0,1.98353459]
[1750434591545,0.00100007,104480.0,104470.0,2.47184038]
[1750434592750,0.00100007,104480.0,104470.0,1.72160038]
[1750434592946,0.00100007,104480.0,104470.0,2.37287512]
[1750434594349,0.28081701,104500.0,104490.0,0.1913882]
[1750434594547,0.30401877,104500.0,104490.0,1.69176873]
[1750434594846,0.25617607,104500.0,104490.0,1.72496873]
[1750434595238,0.02357925,104500.0,104490.0,1.75686873]
[1750434595439,0.21494905,104500.0,104490.0,1.75686873]
[1750434596050,0.21494905,104500.0,104490.0,1.75786873]
[1750434597543,0.21594905,104500.0,104490.0,1.77241384]
[1750434599250,0.02457925,104500.0,104490.0,1.77241384]
[1750434600749,0.21594905,104500.0,104490.0,1.77241384]
[1750434601150,0.02457925,104500.0,104490.0,1.77241384]
[1750434602753,0.21594905,104500.0,104490.0,1.02333384]
[1750434602950,0.21594905,104500.0,104490.0,1.77209384]
[1750434603352,0.27954905,104500.0,104490.0,1.77209384]
[1750434604648,0.83004958,104500.0,104490.0,0.56773331]
[1750434604955,0.77004958,104500.0,104490.0,1.31645331]
[1750434605147,0.77422365,104500.0,104490.0,1.31645331]
[1750434605457,0.77422365,104500.0,104490.0,0.01554511]
[1750434605753,0.77422365,104500.0,104490.0,0.80977321]
[1750434606857,0.77422365,104500.0,104490.0,0.006]
[1750434607055,1.57642365,104500.0,104490.0,0.006]
[1750434608357,2.07242365,104500.0,104490.0,0.006]
[1750434608556,2.12972253,104500.0,104490.0,0.006]
[1750434609149,1.87972253,104500.0,104490.0,0.006]
[1750434609956,1.85614328,104500.0,104490.0,0.006]
[1750434610156,1.7988444,104500.0,104490.0,0.006]
[1750434610852,2.48252719,104500.0,104490.0,0.006]
[1750434611055,0.1913882,104490.0,104480.0,0.15550475]
[1750434611256,1.64735205,104490.0,104480.0,0.34691125]
[1750434611561,0.1914065,104480.0,104470.0,0.07663571]
[1750434611767,0.8386268,104480.0,104470.0,0.1914248]
[1750434611966,0.8386268,104480.0,104470.0,0.2009539]
[1750434612353,1.1994268,104480.0,104470.0,0.0095291]
[1750434612661,1.1994268,104480.0,104470.0,0.1914248]
[1750434612864,1.2004268,104480.0,104470.0,0.1984248]
[1750434613049,1.2004268,104480.0,104470.0,0.007]
[1750434613253,1.2004268,104480.0,104470.0,0.1984248]
[1750434614165,1.2004268,104480.0,104470.0,0.1994248]
[1750434614356,1.8031468,104480.0,104470.0,0.008]
[1750434614551,1.9945788,104480.0,104470.0,0.005]
[1750434614852,2.05192182,104480.0,104470.0,0.005]
[1750434615054,1.9945788,104480.0,104470.0,0.1964248]
[1750434616155,1.8031468,104480.0,104470.0,0.1964248]
[1750434616461,1.2004268,104480.0,104470.0,0.1964248]
[1750434616758,1.2004268,104480.0,104470.0,0.005]
[1750434617368,1.2004268,104480.0,104470.0,0.1964248]
[1750434618167,1.2004268,104480.0,104470.0,0.005]
[1750434618355,1.2004268,104480.0,104470.0,0.1964248]
[1750434618559,1.2004268,104480.0,104470.0,0.005]
[1750434621265,1.39603287,104480.0,104470.0,0.005]
[1750434621668,0.1914431,104460.0,104450.0,0.4980142]
[1750434621971,1.1463634,104460.0,104450.0,0.40192401]
[1750434622272,1.60076393,104460.0,104450.0,0.14546251]
[1750434622474,1.55291213,104460.0,104440.0,0.400071]
[1750434622782,0.94276193,104450.0,104440.0,0.45401855]
[1750434622971,1.1763817,104450.0,104440.0,0.45401855]
[1750434623174,1.1763817,104450.0,104440.0,0.3406386]
[1750434623363,1.1763817,104450.0,104440.0,0.07434284]
[1750434623669,1.1763817,104450.0,104440.0,0.26582264]
[1750434624875,1.1773817,104450.0,104440.0,0.26982264]
[1750434625473,0.8165817,104450.0,104440.0,0.26882264]
[1750434626669,0.001,104450.0,104440.0,1.16552317]
[1750434626975,0.001,104450.0,104440.0,1.52552317]
[1750434627176,0.001,104450.0,104440.0,1.24178111]
[1750434627471,0.7353178,104460.0,104450.0,0.1914615]
[1750434627672,0.75873988,104460.0,104450.0,1.21654203]
[1750434628077,0.96873988,104460.0,104450.0,1.21654203]
[1750434628375,1.71004041,104460.0,104450.0,0.9714414]
[1750434628576,1.71504041,104460.0,104450.0,0.9714414]
[1750434628969,1.71604041,104460.0,104450.0,0.9714414]
[1750434629979,1.15524041,104460.0,104450.0,0.9714414]
[1750434630575,1.33524041,104460.0,104450.0,0.9714414]
[1750434630771,1.15524041,104460.0,104450.0,1.0028414]
[1750434630971,1.25331945,104460.0,104450.0,1.0028414]
[1750434631171,1.43331945,104460.0,104450.0,1.0028414]
[1750434631372,1.25331945,104460.0,104450.0,1.0028414]
[1750434632477,0.76473988,104460.0,104450.0,1.0028414]
[1750434633375,0.93473988,104460.0,104450.0,1.0028414]
[1750434634181,1.42331945,104460.0,104450.0,0.2549614]
[1750434634383,1.78411945,104460.0,104450.0,1.0027614]
[1750434634875,1.42331945,104460.0,104450.0,1.0027614]
[1750434636278,1.42331945,104460.0,104450.0,1.0027214]
[1750434636482,0.94473988,104460.0,104450.0,1.0027214]
[1750434637280,0.97473988,104460.0,104450.0,1.0027214]
[1750434637583,1.46331945,104460.0,104450.0,1.0027214]
[1750434638578,0.97473988,104460.0,104450.0,1.0027214]
[1750434638778,1.46331945,104460.0,104450.0,1.0027214]
[1750434641879,1.43989737,104460.0,104450.0,1.0027214]
[1750434642581,1.33133398,104460.0,104450.0,1.0027214]
[1750434642778,1.71567154,104460.0,104450.0,1.0024814]
[1750434643581,1.71984561,104460.0,104450.0,1.0024814]
[1750434645292,1.71984561,104460.0,104450.0,0.2549614]
[1750434645492,1.71984561,104460.0,104450.0,1.0024014]
[1750434646681,1.71984561,104460.0,104450.0,0.2549614]
[1750434646884,1.71984561,104460.0,104450.0,1.0023614]
[1750434647083,1.35904561,104460.0,104450.0,1.0023614]
[1750434647687,1.35487154,104460.0,104450.0,1.0023614]
[1750434648482,1.35487154,104460.0,104450.0,1.01989723]
[1750434648689,1.35487154,104460.0,104450.0,1.0023614]
[1750434650883,1.35487154,104460.0,104450.0,1.0022814]
[1750434651294,0.86629197,104460.0,104450.0,1.0022814]
[1750434651483,1.35487154,104460.0,104450.0,1.0022814]
[1750434652689,1.33550805,104460.0,104450.0,1.0022814]
[1750434652999,1.2378103,104460.0,104450.0,1.0022814]
[1750434653489,1.26133223,104460.0,104450.0,1.01926882]
[1750434653693,1.26133223,104460.0,104450.0,1.0022814]
[1750434653993,1.62213223,104460.0,104450.0,1.0016814]
[1750434654397,1.31873566,104460.0,104450.0,1.0016814]
[1750434654596,1.31873566,104460.0,104450.0,1.0016414]
[1750434654797,1.70961748,104460.0,104450.0,1.0016414]
[1750434654996,1.77441748,104460.0,104450.0,1.0016414]
[1750434655198,1.77441748,104460.0,104450.0,0.2549614]
[1750434655393,1.77441748,104460.0,104450.0,0.8566414]
[1750434655601,0.1914614,104450.0,104440.0,1.48023758]
[1750434655795,0.78586515,104450.0,104440.0,1.54233758]
[1750434656298,0.39498333,104450.0,104440.0,1.54233758]
[1750434656494,0.78586515,104450.0,104440.0,0.79569758]
[1750434656800,0.78586515,104450.0,104440.0,1.54229758]
[1750434658299,0.78586515,104450.0,104440.0,1.54329758]
[1750434658798,0.78686515,104450.0,104440.0,1.54529758]
[1750434659599,0.78686515,104450.0,104440.0,1.54521758]
[1750434660400,0.39598333,104450.0,104440.0,1.54521758]
[1750434660598,0.78686515,104450.0,104440.0,1.54521758]
[1750434660900,0.39598333,104450.0,104440.0,1.54521758]
[1750434661999,0.78686515,104450.0,104440.0,1.54521758]
[1750434662495,0.78686515,104450.0,104440.0,1.18441758]
[1750434662698,1.14766515,104450.0,104440.0,1.18441758]
[1750434663003,1.14766515,104450.0,104440.0,0.86734704]
[1750434663295,1.26916858,104450.0,104440.0,0.86734704]
[1750434663502,0.84426858,104450.0,104440.0,0.86734704]
[1750434664000,1.20506858,104450.0,104440.0,0.86734704]
[1750434664902,1.20606858,104450.0,104440.0,0.86634704]
[1750434665289,1.20506858,104450.0,104440.0,0.86434704]
[1750434665494,1.20706858,104450.0,104440.0,0.86534704]
[1750434665691,1.20706858,104450.0,104440.0,0.001]
[1750434665890,0.1914981,104430.0,104420.0,0.98574823]
[1750434666098,1.14670185,104430.0,104420.0,1.14530493]
[1750434666695,0.38502003,104430.0,104420.0,1.00030493]
[1750434667001,0.38502003,104430.0,104420.0,1.0100133]
[1750434667705,0.77590185,104430.0,104420.0,1.0100133]
[1750434668403,0.77590185,104430.0,104420.0,1.0885333]
[1750434668602,0.77590185,104430.0,104420.0,1.4493333]
[1750434668906,0.38602003,104430.0,104420.0,1.84321512]
[1750434669112,0.21602003,104430.0,104420.0,1.84321512]
[1750434669403,0.02452193,104430.0,104420.0,1.84321512]
[1750434669704,0.57891501,104440.0,104430.0,0.1914981]
[1750434669897,0.78891501,104440.0,104430.0,1.11973992]
[1750434670507,0.4014807,104440.0,104430.0,1.11973992]
[1750434671307,0.4014807,104440.0,104430.0,0.7288581]
[1750434671809,0.4024807,104440.0,104430.0,0.7328581]
[1750434671996,0.4024807,104440.0,104430.0,0.3720581]
[1750434672708,0.79336252,104440.0,104430.0,1.3340981]